[Event "Late-Titled-Tuesday-Blitz-November-28-2023"]
[Site "Chess.com"]
[Date "2023.11.28"]
[Round "4"]
[White "OparinGrigoriy"]
[Black "Alex_Banzea"]
[Result "1-0"]
[WhiteElo "3001"]
[BlackElo "2672"]
[TimeControl "180+1"]
[EndTime "14:33:54 PST"]
[Termination "OparinGrigoriy won by resignation"]

1. Nc3 {[%clk 0:03:00.9]} 1... d5 {[%clk 0:02:54.7]} 2. e4 {[%clk 0:03:01.4]}
2... c6 {[%clk 0:02:55.4]} 3. Nf3 {[%clk 0:03:01.3]} 3... dxe4 {[%clk
0:02:55.8]} 4. Nxe4 {[%clk 0:03:02.2]} 4... Nf6 {[%clk 0:02:56.6]} 5. Qe2 {[%clk
0:03:01.9]} 5... Nxe4 {[%clk 0:02:57.2]} 6. Qxe4 {[%clk 0:03:02.8]} 6... Be6
{[%clk 0:02:57.9]} 7. b3 {[%clk 0:03:02.5]} 7... Nd7 {[%clk 0:02:58.3]} 8. Bc4
{[%clk 0:03:02.7]} 8... Nf6 {[%clk 0:02:56.5]} 9. Qe2 {[%clk 0:02:59.6]} 9...
Bxc4 {[%clk 0:02:56.2]} 10. bxc4 {[%clk 0:02:59.9]} 10... e6 {[%clk 0:02:55]}
11. Rb1 {[%clk 0:02:59.7]} 11... Qc7 {[%clk 0:02:54.4]} 12. O-O {[%clk 0:02:59]}
12... Be7 {[%clk 0:02:50.2]} 13. Rb3 {[%clk 0:02:56.8]} 13... O-O {[%clk
0:02:49.6]} 14. Bb2 {[%clk 0:02:57.5]} 14... Nd7 {[%clk 0:02:42.4]} 15. Ne5
{[%clk 0:02:50.7]} 15... Nxe5 {[%clk 0:02:25.7]} 16. Bxe5 {[%clk 0:02:51.6]}
16... Qd7 {[%clk 0:02:15.9]} 17. Rd3 {[%clk 0:02:51.5]} 17... Qe8 {[%clk
0:02:08.2]} 18. Qg4 {[%clk 0:02:46.4]} 18... g6 {[%clk 0:01:44.5]} 19. Rh3
{[%clk 0:02:45.6]} 19... f5 {[%clk 0:01:36]} 20. Rxh7 {[%clk 0:02:44.7]} 20...
fxg4 {[%clk 0:00:51]} 21. Rg7+ {[%clk 0:02:44.6]} 21... Kh8 {[%clk 0:00:51.7]}
22. Rxe7+ {[%clk 0:02:45.2]} 22... Kg8 {[%clk 0:00:51.9]} 23. Rg7+ {[%clk
0:02:45.9]} 23... Kh8 {[%clk 0:00:52.4]} 24. Rxb7+ {[%clk 0:02:46.5]} 24... Rf6
{[%clk 0:00:33]} 25. Bxf6+ {[%clk 0:02:46.2]} 25... Kg8 {[%clk 0:00:33.7]} 26.
Rg7+ {[%clk 0:02:43.4]} 26... Kf8 {[%clk 0:00:33.9]} 27. Rh7 {[%clk 0:02:43]}
1-0

[Event "Late-Titled-Tuesday-Blitz-November-28-2023"]
[Site "Chess.com"]
[Date "2023.11.28"]
[Round "4"]
[White "nindjaxx8"]
[Black "marvinguevara"]
[Result "1-0"]
[WhiteElo "2461"]
[BlackElo "2187"]
[TimeControl "180+1"]
[EndTime "14:33:58 PST"]
[Termination "nindjaxx8 won by resignation"]

1. d4 {[%clk 0:02:57.2]} 1... Nf6 {[%clk 0:02:58.7]} 2. c4 {[%clk 0:02:56.9]}
2... e6 {[%clk 0:02:58.7]} 3. Nc3 {[%clk 0:02:56.2]} 3... d5 {[%clk 0:02:59.3]}
4. Nf3 {[%clk 0:02:55.1]} 4... c5 {[%clk 0:02:59.6]} 5. e3 {[%clk 0:02:54]} 5...
Nc6 {[%clk 0:02:59.1]} 6. cxd5 {[%clk 0:02:53.7]} 6... exd5 {[%clk 0:02:58.2]}
7. Bd3 {[%clk 0:02:52.9]} 7... Be7 {[%clk 0:02:55.2]} 8. dxc5 {[%clk 0:02:51.9]}
8... Bxc5 {[%clk 0:02:54.4]} 9. O-O {[%clk 0:02:52.4]} 9... O-O {[%clk
0:02:53.6]} 10. a3 {[%clk 0:02:51.8]} 10... Bg4 {[%clk 0:02:52.1]} 11. b4 {[%clk
0:02:51]} 11... Bb6 {[%clk 0:02:52]} 12. Bb2 {[%clk 0:02:51.1]} 12... Rc8 {[%clk
0:02:48.4]} 13. h3 {[%clk 0:02:42.8]} 13... Bh5 {[%clk 0:02:47.7]} 14. Be2
{[%clk 0:02:41]} 14... Re8 {[%clk 0:02:35.1]} 15. Nb5 {[%clk 0:02:35]} 15... Bg6
{[%clk 0:02:23.3]} 16. Nbd4 {[%clk 0:02:33]} 16... Nxd4 {[%clk 0:02:20.1]} 17.
Nxd4 {[%clk 0:02:33.9]} 17... Ne4 {[%clk 0:02:19.3]} 18. Bf3 {[%clk 0:02:22.4]}
18... Nc3 {[%clk 0:02:11.2]} 19. Bxc3 {[%clk 0:02:18.8]} 19... Rxc3 {[%clk
0:02:10.4]} 20. Rc1 {[%clk 0:02:16]} 20... Rxc1 {[%clk 0:02:08.7]} 21. Qxc1
{[%clk 0:02:13.2]} 21... Bxd4 {[%clk 0:02:05]} 22. exd4 {[%clk 0:02:13.5]} 22...
Be4 {[%clk 0:02:04.4]} 23. Bxe4 {[%clk 0:02:12.9]} 23... dxe4 {[%clk 0:02:03]}
24. Rd1 {[%clk 0:02:11.4]} 24... g6 {[%clk 0:02:00.7]} 25. d5 {[%clk 0:02:10.9]}
25... Re7 {[%clk 0:01:57.7]} 26. Qe3 {[%clk 0:02:07.6]} 26... b6 {[%clk
0:01:50.3]} 27. d6 {[%clk 0:02:07.2]} 27... Rd7 {[%clk 0:01:48.7]} 28. Qd4
{[%clk 0:02:03.6]} 28... Qe8 {[%clk 0:01:24.8]} 29. Rc1 {[%clk 0:01:57.9]} 29...
Qe6 {[%clk 0:01:22.6]} 30. Rc8+ {[%clk 0:01:55]} 1-0

[Event "Late-Titled-Tuesday-Blitz-November-28-2023"]
[Site "Chess.com"]
[Date "2023.11.28"]
[Round "4"]
[White "yoelpolanco"]
[Black "Dontmesswithme_2"]
[Result "0-1"]
[WhiteElo "2264"]
[BlackElo "2466"]
[TimeControl "180+1"]
[EndTime "14:34:09 PST"]
[Termination "Dontmesswithme_2 won by resignation"]

1. d4 {[%clk 0:01:54.3]} 1... d5 {[%clk 0:02:59.4]} 2. c4 {[%clk 0:01:54.2]}
2... c6 {[%clk 0:02:59.3]} 3. Nc3 {[%clk 0:01:54.2]} 3... Nf6 {[%clk 0:02:59]}
4. e3 {[%clk 0:01:54.9]} 4... a6 {[%clk 0:02:58.6]} 5. h3 {[%clk 0:01:54.3]}
5... Bf5 {[%clk 0:02:58.1]} 6. Nf3 {[%clk 0:01:54.5]} 6... e6 {[%clk 0:02:56.9]}
7. Bd3 {[%clk 0:01:54.6]} 7... Bg6 {[%clk 0:02:53]} 8. O-O {[%clk 0:01:54.3]}
8... Nbd7 {[%clk 0:02:51.8]} 9. b3 {[%clk 0:01:51.7]} 9... Bd6 {[%clk
0:02:51.5]} 10. Bb2 {[%clk 0:01:51.4]} 10... Qe7 {[%clk 0:02:48.8]} 11. Re1
{[%clk 0:01:50.4]} 11... Ne4 {[%clk 0:02:38.3]} 12. Qc2 {[%clk 0:01:49.1]} 12...
f5 {[%clk 0:02:36.8]} 13. Ne2 {[%clk 0:01:46.6]} 13... Qf6 {[%clk 0:02:32.5]}
14. Nf4 {[%clk 0:01:42.8]} 14... Bf7 {[%clk 0:02:24.3]} 15. Bf1 {[%clk
0:01:37.7]} 15... g5 {[%clk 0:02:21.9]} 16. Nd3 {[%clk 0:01:37.7]} 16... g4
{[%clk 0:02:21.5]} 17. hxg4 {[%clk 0:01:32.9]} 17... fxg4 {[%clk 0:02:20.9]} 18.
Nfe5 {[%clk 0:01:33.8]} 18... g3 {[%clk 0:02:14.6]} 19. f3 {[%clk 0:01:30.8]}
19... Bxe5 {[%clk 0:01:53.8]} 20. Nxe5 {[%clk 0:01:13.7]} 20... Qh4 {[%clk
0:01:41.2]} 21. Ng4 {[%clk 0:01:11.1]} 21... Nf2 {[%clk 0:01:40.2]} 0-1

[Event "Late-Titled-Tuesday-Blitz-November-28-2023"]
[Site "Chess.com"]
[Date "2023.11.28"]
[Round "4"]
[White "AlexPapasimakopoulos"]
[Black "VitorBronson"]
[Result "1-0"]
[WhiteElo "2679"]
[BlackElo "2510"]
[TimeControl "180+1"]
[EndTime "14:34:16 PST"]
[Termination "AlexPapasimakopoulos won by resignation"]

1. d4 {[%clk 0:03:00.9]} 1... d5 {[%clk 0:03:00.1]} 2. c4 {[%clk 0:03:01.2]}
2... c6 {[%clk 0:03:00.3]} 3. cxd5 {[%clk 0:03:00.8]} 3... cxd5 {[%clk
0:03:00.3]} 4. Bf4 {[%clk 0:03:01.5]} 4... Nc6 {[%clk 0:02:59.9]} 5. e3 {[%clk
0:03:01.4]} 5... Nf6 {[%clk 0:03:00]} 6. Nc3 {[%clk 0:03:02.1]} 6... a6 {[%clk
0:02:59.4]} 7. Bd3 {[%clk 0:03:01.9]} 7... Bg4 {[%clk 0:02:56.9]} 8. Nge2 {[%clk
0:03:02.3]} 8... e6 {[%clk 0:02:56.3]} 9. O-O {[%clk 0:03:02.8]} 9... Bd6 {[%clk
0:02:56]} 10. f3 {[%clk 0:03:03.5]} 10... Bh5 {[%clk 0:02:55.4]} 11. Rc1 {[%clk
0:03:04.2]} 11... O-O {[%clk 0:02:55]} 12. Na4 {[%clk 0:03:04.6]} 12... Bg6
{[%clk 0:02:51.6]} 13. Nc5 {[%clk 0:03:04.9]} 13... Bxf4 {[%clk 0:02:50.2]} 14.
Nxf4 {[%clk 0:03:04.8]} 14... Qb6 {[%clk 0:02:48.4]} 15. Bxg6 {[%clk 0:02:54.7]}
15... hxg6 {[%clk 0:02:48]} 16. Nfd3 {[%clk 0:02:54.1]} 16... Rfd8 {[%clk
0:02:45.5]} 17. Rc3 {[%clk 0:02:43.4]} 17... Qc7 {[%clk 0:02:38.9]} 18. Qa4
{[%clk 0:02:33.2]} 18... Rac8 {[%clk 0:02:36.7]} 19. Rfc1 {[%clk 0:02:32]} 19...
e5 {[%clk 0:02:18.5]} 20. dxe5 {[%clk 0:01:52.7]} 20... Nxe5 {[%clk 0:02:10.2]}
21. Nxa6 {[%clk 0:01:44.5]} 21... Qb6 {[%clk 0:01:52.7]} 22. Rxc8 {[%clk
0:01:34.9]} 22... Nxd3 {[%clk 0:01:36.1]} 23. Qd4 {[%clk 0:01:20]} 23... Rxc8
{[%clk 0:01:32.7]} 24. Rxc8+ {[%clk 0:01:19.2]} 24... Kh7 {[%clk 0:01:33.3]} 25.
Qxb6 {[%clk 0:01:10.3]} 1-0

[Event "Late-Titled-Tuesday-Blitz-November-28-2023"]
[Site "Chess.com"]
[Date "2023.11.28"]
[Round "4"]
[White "Hypercar"]
[Black "elchacal664"]
[Result "1-0"]
[WhiteElo "2519"]
[BlackElo "2345"]
[TimeControl "180+1"]
[EndTime "14:34:37 PST"]
[Termination "Hypercar won by resignation"]

1. d4 {[%clk 0:02:55.2]} 1... e5 {[%clk 0:02:58.3]} 2. dxe5 {[%clk 0:02:54.9]}
2... Nc6 {[%clk 0:02:58.3]} 3. Nf3 {[%clk 0:02:53]} 3... Qe7 {[%clk 0:02:58.3]}
4. Nc3 {[%clk 0:02:52.2]} 4... Nxe5 {[%clk 0:02:57.8]} 5. Nxe5 {[%clk
0:02:53.1]} 5... Qxe5 {[%clk 0:02:57.3]} 6. g3 {[%clk 0:02:41.4]} 6... Bb4
{[%clk 0:02:53.9]} 7. Bd2 {[%clk 0:02:41.1]} 7... Nf6 {[%clk 0:02:53.2]} 8. Bg2
{[%clk 0:02:41.8]} 8... d5 {[%clk 0:02:50.9]} 9. O-O {[%clk 0:02:41.4]} 9... O-O
{[%clk 0:02:49.1]} 10. a3 {[%clk 0:02:30.4]} 10... Ba5 {[%clk 0:02:37.4]} 11.
Bf4 {[%clk 0:02:25.4]} 11... Bxc3 {[%clk 0:02:32.5]} 12. Bxe5 {[%clk 0:02:22.2]}
12... Bxe5 {[%clk 0:02:33.4]} 13. c3 {[%clk 0:02:20.9]} 13... c6 {[%clk
0:02:32.6]} 14. Qc2 {[%clk 0:02:21]} 14... g6 {[%clk 0:02:31.4]} 15. Rad1 {[%clk
0:02:20.4]} 15... Bf5 {[%clk 0:02:30.2]} 16. Qb3 {[%clk 0:02:20.9]} 16... Rab8
{[%clk 0:02:28.8]} 17. Qa4 {[%clk 0:02:20.2]} 17... a6 {[%clk 0:02:27.7]} 18. e3
{[%clk 0:02:20.5]} 18... Rfe8 {[%clk 0:02:20.4]} 19. h3 {[%clk 0:02:20]} 19...
h5 {[%clk 0:02:19.7]} 20. Rd2 {[%clk 0:02:19]} 20... Ne4 {[%clk 0:02:19.5]} 21.
Bxe4 {[%clk 0:02:18.6]} 21... Bxe4 {[%clk 0:02:19.5]} 22. f3 {[%clk 0:02:16.7]}
22... Bf5 {[%clk 0:02:18.8]} 23. g4 {[%clk 0:02:17]} 23... hxg4 {[%clk
0:02:15.7]} 24. hxg4 {[%clk 0:02:17]} 24... Be6 {[%clk 0:02:13.7]} 25. Kg2
{[%clk 0:02:16.1]} 25... Kg7 {[%clk 0:02:12.1]} 26. Rh1 {[%clk 0:02:16.3]} 26...
Rh8 {[%clk 0:02:11.3]} 27. Rdd1 {[%clk 0:02:16.4]} 27... f5 {[%clk 0:02:04.3]}
28. Rxh8 {[%clk 0:02:15.2]} 28... Rxh8 {[%clk 0:02:02.9]} 29. Rh1 {[%clk
0:02:14.7]} 29... Rf8 {[%clk 0:02:02.9]} 30. Qb4 {[%clk 0:02:13]} 30... Rf7
{[%clk 0:02:01.5]} 31. f4 {[%clk 0:02:10.9]} 31... d4 {[%clk 0:01:39.4]} 32.
fxe5 {[%clk 0:02:02.2]} 32... Bd5+ {[%clk 0:01:39.3]} 33. Kg1 {[%clk 0:02:02.4]}
33... dxe3 {[%clk 0:01:34.2]} 34. gxf5 {[%clk 0:01:58.6]} 34... Rxf5 {[%clk
0:01:30.7]} 35. Rh2 {[%clk 0:01:49.8]} 35... Rg5+ {[%clk 0:01:26.9]} 36. Kf1
{[%clk 0:01:47.1]} 36... Rf5+ {[%clk 0:01:25.7]} 37. Ke1 {[%clk 0:01:47.3]}
37... Rg5 {[%clk 0:01:19.2]} 38. Qe7+ {[%clk 0:01:42.8]} 1-0

[Event "Late-Titled-Tuesday-Blitz-November-28-2023"]
[Site "Chess.com"]
[Date "2023.11.28"]
[Round "4"]
[White "cthake"]
[Black "campochess"]
[Result "1-0"]
[WhiteElo "1920"]
[BlackElo "2197"]
[TimeControl "180+1"]
[EndTime "14:34:51 PST"]
[Termination "cthake won by resignation"]

1. e4 {[%clk 0:03:00.9]} 1... c5 {[%clk 0:02:59.7]} 2. Nf3 {[%clk 0:03:00]} 2...
Nc6 {[%clk 0:02:59.7]} 3. Bb5 {[%clk 0:02:59.8]} 3... e5 {[%clk 0:02:58.8]} 4.
Bxc6 {[%clk 0:02:58.3]} 4... dxc6 {[%clk 0:02:57.9]} 5. O-O {[%clk 0:02:56.4]}
5... f6 {[%clk 0:02:57.7]} 6. d3 {[%clk 0:02:46]} 6... Bd6 {[%clk 0:02:56.3]} 7.
Nbd2 {[%clk 0:02:45.2]} 7... Ne7 {[%clk 0:02:56.1]} 8. Nc4 {[%clk 0:02:45.1]}
8... Bc7 {[%clk 0:02:56.3]} 9. Be3 {[%clk 0:02:39.3]} 9... b6 {[%clk 0:02:54.9]}
10. a4 {[%clk 0:02:37.1]} 10... Be6 {[%clk 0:02:54.8]} 11. b3 {[%clk 0:02:31.4]}
11... O-O {[%clk 0:02:53.5]} 12. Nh4 {[%clk 0:02:14.2]} 12... Nc8 {[%clk
0:02:51.9]} 13. g4 {[%clk 0:02:11.9]} 13... Qd7 {[%clk 0:02:46.5]} 14. h3 {[%clk
0:02:10.3]} 14... Nd6 {[%clk 0:02:43.7]} 15. Nxd6 {[%clk 0:02:08.3]} 15... Bxd6
{[%clk 0:02:42.7]} 16. Nf5 {[%clk 0:02:04.8]} 16... Bxf5 {[%clk 0:02:41.7]} 17.
gxf5 {[%clk 0:02:03.4]} 17... Rad8 {[%clk 0:02:40.7]} 18. Kh1 {[%clk 0:02:00.5]}
18... Kh8 {[%clk 0:02:40.4]} 19. Rg1 {[%clk 0:01:58.7]} 19... Rg8 {[%clk
0:02:40.2]} 20. Qh5 {[%clk 0:01:53.1]} 20... Rdf8 {[%clk 0:02:33.8]} 21. Rg4
{[%clk 0:01:45.9]} 21... g5 {[%clk 0:02:32.6]} 22. fxg6 {[%clk 0:01:42.3]} 22...
Rg7 {[%clk 0:02:30]} 23. Bh6 {[%clk 0:01:38.2]} 23... Rfg8 {[%clk 0:02:29.6]}
24. Bxg7+ {[%clk 0:01:29.8]} 24... Rxg7 {[%clk 0:02:28.5]} 25. Rag1 {[%clk
0:01:26.4]} 25... Qe8 {[%clk 0:01:58]} 26. Qh4 {[%clk 0:01:13.2]} 26... Be7
{[%clk 0:01:56.2]} 27. Qg3 {[%clk 0:01:05]} 27... b5 {[%clk 0:01:47]} 28. gxh7
{[%clk 0:01:02.3]} 28... Rg5 {[%clk 0:01:36.5]} 29. h4 {[%clk 0:00:56.5]} 29...
Rxg4 {[%clk 0:01:32.7]} 30. Qxg4 {[%clk 0:00:56.1]} 30... Qf7 {[%clk 0:01:32.8]}
31. Qg8+ {[%clk 0:00:51.5]} 1-0

[Event "Late-Titled-Tuesday-Blitz-November-28-2023"]
[Site "Chess.com"]
[Date "2023.11.28"]
[Round "4"]
[White "Mikasinski"]
[Black "rdarruda"]
[Result "1-0"]
[WhiteElo "2708"]
[BlackElo "2517"]
[TimeControl "180+1"]
[EndTime "14:35:00 PST"]
[Termination "Mikasinski won by resignation"]

1. e4 {[%clk 0:03:00.9]} 1... c5 {[%clk 0:02:59.4]} 2. Nf3 {[%clk 0:03:01.1]}
2... Nc6 {[%clk 0:02:59.5]} 3. d4 {[%clk 0:03:01.5]} 3... cxd4 {[%clk
0:02:59.6]} 4. Nxd4 {[%clk 0:03:02.1]} 4... e5 {[%clk 0:02:58.9]} 5. Nb5 {[%clk
0:03:00.5]} 5... a6 {[%clk 0:02:58.9]} 6. Nd6+ {[%clk 0:03:00.6]} 6... Bxd6
{[%clk 0:02:59.5]} 7. Qxd6 {[%clk 0:03:00.9]} 7... Qe7 {[%clk 0:03:00.3]} 8.
Qxe7+ {[%clk 0:03:00.7]} 8... Ngxe7 {[%clk 0:03:01.2]} 9. Nc3 {[%clk 0:02:53.7]}
9... Nb4 {[%clk 0:03:01.1]} 10. Kd1 {[%clk 0:02:41.9]} 10... d6 {[%clk
0:03:00.7]} 11. a3 {[%clk 0:02:39.3]} 11... Nbc6 {[%clk 0:03:00.7]} 12. Be3
{[%clk 0:02:39.3]} 12... Be6 {[%clk 0:02:59.9]} 13. Bd3 {[%clk 0:02:32.4]} 13...
O-O {[%clk 0:02:56]} 14. Kc1 {[%clk 0:02:28.8]} 14... Na5 {[%clk 0:02:51.3]} 15.
b3 {[%clk 0:02:28]} 15... Rac8 {[%clk 0:02:31.4]} 16. Kb2 {[%clk 0:02:28.2]}
16... b5 {[%clk 0:02:06.4]} 17. Rad1 {[%clk 0:02:27.4]} 17... Nac6 {[%clk
0:02:03.2]} 18. Be2 {[%clk 0:02:26.6]} 18... Rfd8 {[%clk 0:02:01.7]} 19. Nd5
{[%clk 0:02:11.2]} 19... Bxd5 {[%clk 0:01:56.9]} 20. exd5 {[%clk 0:02:11.2]}
20... Nb8 {[%clk 0:01:55.7]} 21. c4 {[%clk 0:02:02.9]} 21... bxc4 {[%clk
0:01:51.2]} 22. Bxc4 {[%clk 0:01:57.4]} 22... f5 {[%clk 0:01:34.7]} 23. f4
{[%clk 0:01:54.7]} 23... exf4 {[%clk 0:01:30.7]} 24. Bxf4 {[%clk 0:01:54.6]}
24... Ng6 {[%clk 0:01:30.5]} 25. Bg5 {[%clk 0:01:54.6]} 25... Re8 {[%clk
0:01:28.2]} 26. Rhe1 {[%clk 0:01:54.2]} 26... Ne5 {[%clk 0:01:27.4]} 27. Bf1
{[%clk 0:01:37.1]} 27... Rc7 {[%clk 0:01:19]} 28. Rc1 {[%clk 0:01:32.4]} 28...
Rec8 {[%clk 0:01:16.1]} 29. Rxc7 {[%clk 0:01:32.3]} 29... Rxc7 {[%clk 0:01:17]}
30. Bf4 {[%clk 0:01:32.3]} 30... Re7 {[%clk 0:01:10]} 31. Bxe5 {[%clk
0:01:26.8]} 31... dxe5 {[%clk 0:01:02.6]} 32. d6 {[%clk 0:01:26]} 32... Rd7
{[%clk 0:01:02.6]} 33. Rxe5 {[%clk 0:01:25.3]} 33... Nc6 {[%clk 0:00:58.7]} 34.
Bc4+ {[%clk 0:01:23.6]} 1-0

[Event "Late-Titled-Tuesday-Blitz-November-28-2023"]
[Site "Chess.com"]
[Date "2023.11.28"]
[Round "4"]
[White "Dinamo81"]
[Black "Elsa167"]
[Result "1-0"]
[WhiteElo "2718"]
[BlackElo "2909"]
[TimeControl "180+1"]
[EndTime "14:35:16 PST"]
[Termination "Dinamo81 won by resignation"]

1. d4 {[%clk 0:03:00.9]} 1... Nf6 {[%clk 0:02:59.1]} 2. Bf4 {[%clk 0:03:00.3]}
2... e6 {[%clk 0:02:57.4]} 3. e3 {[%clk 0:03:00.1]} 3... b6 {[%clk 0:02:57.6]}
4. Qf3 {[%clk 0:02:59.8]} 4... Nc6 {[%clk 0:02:52.7]} 5. Nc3 {[%clk 0:02:59.4]}
5... Bb7 {[%clk 0:02:51.9]} 6. O-O-O {[%clk 0:02:59.9]} 6... g6 {[%clk
0:02:37.6]} 7. e4 {[%clk 0:02:55.4]} 7... Bg7 {[%clk 0:02:30.7]} 8. d5 {[%clk
0:02:45]} 8... Ne7 {[%clk 0:02:16.9]} 9. Be5 {[%clk 0:02:25.2]} 9... Nh5 {[%clk
0:02:06.3]} 10. Bxg7 {[%clk 0:02:22.5]} 10... Nxg7 {[%clk 0:02:07.2]} 11. Nh3
{[%clk 0:02:11.8]} 11... O-O {[%clk 0:02:04]} 12. Bc4 {[%clk 0:02:06.3]} 12...
d6 {[%clk 0:01:42.2]} 13. g4 {[%clk 0:01:45.7]} 13... e5 {[%clk 0:01:34.8]} 14.
Qe3 {[%clk 0:01:34.2]} 14... f6 {[%clk 0:01:28.7]} 15. f4 {[%clk 0:01:30.2]}
15... exf4 {[%clk 0:01:19.7]} 16. Nxf4 {[%clk 0:01:29.5]} 16... Bc8 {[%clk
0:00:58]} 17. Rdg1 {[%clk 0:01:20.2]} 17... Kh8 {[%clk 0:00:38.1]} 18. h4 {[%clk
0:01:15.2]} 18... Ng8 {[%clk 0:00:31.5]} 19. h5 {[%clk 0:01:07.7]} 19... g5
{[%clk 0:00:31.3]} 20. Ng6+ {[%clk 0:01:07.6]} 20... hxg6 {[%clk 0:00:28.7]} 21.
hxg6+ {[%clk 0:01:08.5]} 21... Nh6 {[%clk 0:00:29]} 22. Rxh6+ {[%clk 0:01:07.3]}
1-0

[Event "Late-Titled-Tuesday-Blitz-November-28-2023"]
[Site "Chess.com"]
[Date "2023.11.28"]
[Round "4"]
[White "NikolaGry"]
[Black "FairChess_on_YouTube"]
[Result "0-1"]
[WhiteElo "2709"]
[BlackElo "3083"]
[TimeControl "180+1"]
[EndTime "14:35:38 PST"]
[Termination "FairChess_on_YouTube won by resignation"]

1. d4 {[%clk 0:03:00.9]} 1... Nf6 {[%clk 0:02:59.3]} 2. Bg5 {[%clk 0:02:59.5]}
2... g6 {[%clk 0:02:58.1]} 3. Bxf6 {[%clk 0:02:59]} 3... exf6 {[%clk 0:02:59]}
4. c4 {[%clk 0:02:59]} 4... d5 {[%clk 0:02:58.6]} 5. cxd5 {[%clk 0:02:56.6]}
5... Qxd5 {[%clk 0:02:59.5]} 6. Nc3 {[%clk 0:02:56.6]} 6... Qd8 {[%clk
0:02:59.6]} 7. e3 {[%clk 0:02:55.9]} 7... c6 {[%clk 0:02:58.9]} 8. Bc4 {[%clk
0:02:55.3]} 8... Bd6 {[%clk 0:02:57.2]} 9. Nge2 {[%clk 0:02:48]} 9... Nd7 {[%clk
0:02:57.3]} 10. O-O {[%clk 0:02:46.4]} 10... Nb6 {[%clk 0:02:57.3]} 11. Bb3
{[%clk 0:02:46.3]} 11... O-O {[%clk 0:02:57.1]} 12. Rc1 {[%clk 0:02:40]} 12...
f5 {[%clk 0:02:57]} 13. g3 {[%clk 0:02:34.2]} 13... Re8 {[%clk 0:02:55.6]} 14.
Nf4 {[%clk 0:02:26.6]} 14... Bxf4 {[%clk 0:02:54.5]} 15. gxf4 {[%clk 0:02:24.9]}
15... Be6 {[%clk 0:02:54.4]} 16. Bxe6 {[%clk 0:01:42.2]} 16... Rxe6 {[%clk
0:02:55.3]} 17. Qf3 {[%clk 0:01:37.5]} 17... Rd6 {[%clk 0:02:51.9]} 18. b3
{[%clk 0:01:29]} 18... Qe7 {[%clk 0:02:49.7]} 19. Kh1 {[%clk 0:01:26.7]} 19...
Rad8 {[%clk 0:02:49.3]} 20. Rfd1 {[%clk 0:01:25.7]} 20... R6d7 {[%clk
0:02:42.6]} 21. h3 {[%clk 0:00:54.1]} 21... Qb4 {[%clk 0:02:38]} 22. Ne2 {[%clk
0:00:34.5]} 22... Nd5 {[%clk 0:02:37.1]} 23. Rc4 {[%clk 0:00:29.4]} 23... Qe7
{[%clk 0:02:34.1]} 24. Rdc1 {[%clk 0:00:28.2]} 24... Nf6 {[%clk 0:02:33]} 25.
Ng3 {[%clk 0:00:27]} 25... Rd5 {[%clk 0:02:33.1]} 26. Rc5 {[%clk 0:00:26.5]}
26... Rxc5 {[%clk 0:02:32.4]} 27. Rxc5 {[%clk 0:00:26]} 27... Rd5 {[%clk
0:02:33]} 28. Rxd5 {[%clk 0:00:26.1]} 28... Nxd5 {[%clk 0:02:33.2]} 29. Qe2
{[%clk 0:00:25]} 29... Qa3 {[%clk 0:02:30.8]} 30. e4 {[%clk 0:00:17.8]} 30...
Qc1+ {[%clk 0:02:27.8]} 31. Kh2 {[%clk 0:00:17.2]} 31... Nxf4 {[%clk 0:02:27.7]}
32. Qf3 {[%clk 0:00:17.4]} 32... fxe4 {[%clk 0:02:20.2]} 33. Nxe4 {[%clk
0:00:17.5]} 33... Kg7 {[%clk 0:02:20.5]} 34. Nd6 {[%clk 0:00:15.1]} 34... b5
{[%clk 0:02:14.9]} 35. Ne8+ {[%clk 0:00:13.5]} 35... Kf8 {[%clk 0:02:14.3]} 36.
Nd6 {[%clk 0:00:13.6]} 36... a5 {[%clk 0:02:07.4]} 37. d5 {[%clk 0:00:11.6]}
37... cxd5 {[%clk 0:02:06]} 38. Nxb5 {[%clk 0:00:11.8]} 38... Ke7 {[%clk
0:02:01.9]} 39. Nd4 {[%clk 0:00:10.9]} 39... Qc7 {[%clk 0:02:01.2]} 40. Kh1
{[%clk 0:00:10.2]} 40... Ne6 {[%clk 0:01:58.1]} 41. Qxd5 {[%clk 0:00:09.2]}
41... Qc1+ {[%clk 0:01:58.1]} 0-1

[Event "Late-Titled-Tuesday-Blitz-November-28-2023"]
[Site "Chess.com"]
[Date "2023.11.28"]
[Round "4"]
[White "temiksmozg"]
[Black "alexrustemov"]
[Result "0-1"]
[WhiteElo "2604"]
[BlackElo "2853"]
[TimeControl "180+1"]
[EndTime "14:35:38 PST"]
[Termination "alexrustemov won by resignation"]

1. e4 {[%clk 0:02:57.5]} 1... e6 {[%clk 0:03:00.1]} 2. d4 {[%clk 0:02:57.4]}
2... d5 {[%clk 0:03:00.5]} 3. Nc3 {[%clk 0:02:58]} 3... dxe4 {[%clk 0:02:59.7]}
4. Nxe4 {[%clk 0:02:58.9]} 4... Bd7 {[%clk 0:03:00.3]} 5. Nf3 {[%clk 0:02:52.8]}
5... Bc6 {[%clk 0:03:00.7]} 6. Bd3 {[%clk 0:02:52.1]} 6... Nd7 {[%clk
0:03:01.2]} 7. Qe2 {[%clk 0:02:49.9]} 7... Ngf6 {[%clk 0:03:01.5]} 8. Bg5 {[%clk
0:02:48.7]} 8... Be7 {[%clk 0:03:01.4]} 9. Bxf6 {[%clk 0:02:35.1]} 9... Nxf6
{[%clk 0:03:00.5]} 10. c3 {[%clk 0:02:26.4]} 10... Qd5 {[%clk 0:02:56.7]} 11.
Nxf6+ {[%clk 0:02:11.4]} 11... gxf6 {[%clk 0:02:56.3]} 12. Bc4 {[%clk
0:01:56.3]} 12... Qf5 {[%clk 0:02:44.6]} 13. O-O-O {[%clk 0:01:42.1]} 13...
O-O-O {[%clk 0:02:36.6]} 14. Rhe1 {[%clk 0:01:36.9]} 14... Rhg8 {[%clk
0:02:33.6]} 15. Qe3 {[%clk 0:01:16.8]} 15... Bd6 {[%clk 0:02:21.3]} 16. Nh4
{[%clk 0:01:12.2]} 16... Qg5 {[%clk 0:02:03]} 17. g3 {[%clk 0:01:07.4]} 17...
Qxe3+ {[%clk 0:01:59.5]} 18. fxe3 {[%clk 0:01:08.3]} 18... f5 {[%clk 0:01:57.9]}
19. d5 {[%clk 0:01:05]} 19... Bd7 {[%clk 0:01:56.8]} 20. e4 {[%clk 0:00:58.2]}
20... f4 {[%clk 0:01:49.5]} 21. e5 {[%clk 0:00:53.6]} 21... Be7 {[%clk
0:01:49.4]} 22. dxe6 {[%clk 0:00:50.3]} 22... Bxe6 {[%clk 0:01:40.6]} 23. Bxe6+
{[%clk 0:00:42.6]} 23... fxe6 {[%clk 0:01:41.5]} 24. Rxd8+ {[%clk 0:00:33.1]}
24... Kxd8 {[%clk 0:01:41.8]} 25. Nf3 {[%clk 0:00:32.5]} 25... fxg3 {[%clk
0:01:41.5]} 26. hxg3 {[%clk 0:00:33.4]} 26... Bc5 {[%clk 0:01:22.2]} 27. Nd2
{[%clk 0:00:20.1]} 27... Rxg3 {[%clk 0:01:18.9]} 28. Ne4 {[%clk 0:00:19.7]}
28... Rg1 {[%clk 0:01:18.8]} 29. Rxg1 {[%clk 0:00:16.7]} 29... Bxg1 {[%clk
0:01:19.7]} 30. Ng5 {[%clk 0:00:16]} 30... Be3+ {[%clk 0:01:19.5]} 0-1